bitfinex-derivatives/quotes_BTCF0:USTF0_20250630
["timestamp","ask_amount","ask_price","bid_price","bid_amount"]
[1751311848367,0.60983098,107550.0,107540.0,1.41254799]
[1751311848670,0.60983098,107550.0,107540.0,1.35722667]
[1751311849178,0.80491398,107550.0,107540.0,1.35722667]
[1751311849372,0.80491398,107550.0,107540.0,1.41254799]
[1751311849672,0.80491398,107550.0,107540.0,1.04012191]
[1751311850171,0.80491398,107550.0,107540.0,1.09544323]
[1751311852072,0.80491398,107550.0,107540.0,1.05845209]
[1751311853667,0.80491398,107550.0,107540.0,1.09546469]
[1751311854578,2.30491398,107550.0,107540.0,1.09546469]
[1751311858480,2.30491398,107550.0,107540.0,1.05845209]
[1751311858683,1.71111398,107550.0,107540.0,1.05845209]
[1751311858884,2.30483398,107550.0,107540.0,1.05845209]
[1751311859277,2.62193874,107550.0,107540.0,1.05845209]
[1751311859474,2.30483398,107550.0,107540.0,1.05845209]
[1751311860074,1.71111398,107550.0,107540.0,1.05845209]
[1751311861284,1.71111398,107550.0,107540.0,1.05545209]
[1751311861791,1.94888917,107550.0,107540.0,1.29322728]
[1751311863083,1.94888917,107550.0,107540.0,1.53100247]
[1751311863292,1.71111398,107550.0,107540.0,1.53100247]
[1751311863576,1.71111398,107550.0,107540.0,1.47568115]
[1751311863886,0.21111398,107550.0,107540.0,1.47568115]
[1751311864485,0.21111398,107550.0,107540.0,1.53116224]
[1751311865077,0.21111398,107550.0,107540.0,1.05561186]
[1751311865277,0.21111398,107550.0,107540.0,1.53116224]
[1751311865887,0.21111398,107550.0,107540.0,1.37258612]
[1751311866087,0.21111398,107550.0,107540.0,1.39088388]
[1751311866987,0.21111398,107550.0,107540.0,1.07390962]
[1751311867177,0.21111398,107550.0,107540.0,1.39088388]
[1751311868590,0.21111398,107550.0,107540.0,1.68748388]
[1751311868773,0.21111398,107550.0,107540.0,1.37050962]
[1751311868979,0.52808824,107550.0,107540.0,1.37050962]
[1751311869185,0.55958824,107550.0,107540.0,1.37050962]
[1751311869486,0.55958824,107550.0,107540.0,1.35612845]
[1751311870185,0.24261398,107550.0,107540.0,1.35612845]
[1751311871285,0.24261398,107550.0,107540.0,1.2823496]
[1751311871988,0.24261398,107550.0,107540.0,1.59932386]
[1751311873186,0.24261398,107550.0,107540.0,1.67310271]
[1751311874584,0.24261398,107550.0,107540.0,1.37650271]
[1751311875688,0.24261398,107550.0,107540.0,1.05952845]
[1751311875880,0.24261398,107550.0,107540.0,1.37650271]
[1751311878588,0.24261398,107550.0,107540.0,1.39103638]
[1751311880290,0.21111398,107550.0,107540.0,1.39103638]
[1751311887392,0.21111398,107550.0,107540.0,1.07406212]
[1751311887598,0.21111398,107550.0,107540.0,1.39103638]
[1751311887895,0.44888449,107550.0,107540.0,1.31183263]
[1751311889396,0.44888449,107550.0,107540.0,1.54960314]
[1751311889881,0.21111398,107550.0,107540.0,1.54960314]
[1751311891899,0.44888449,107550.0,107540.0,1.54960314]
[1751311893195,0.21111398,107550.0,107540.0,1.54960314]
[1751311893400,0.44888449,107550.0,107540.0,1.54960314]
[1751311893994,0.44888449,107550.0,107540.0,1.18880314]
[1751311894195,0.44888449,107550.0,107540.0,1.91040314]
[1751311895100,0.21111398,107550.0,107540.0,1.91040314]
[1751311895394,0.44888449,107550.0,107540.0,1.91040314]
[1751311895596,0.21111398,107550.0,107540.0,1.91040314]
[1751311895899,0.44888449,107550.0,107540.0,1.91040314]
[1751311896396,0.21111398,107550.0,107540.0,1.91040314]
[1751311898301,0.44888449,107550.0,107540.0,1.91040314]
[1751311900001,0.21111398,107550.0,107540.0,1.91040314]
[1751311901298,1.5,107560.0,107550.0,0.1859323]
[1751311901494,1.18879329,107570.0,107560.0,0.1859151]
[1751311901695,1.18879329,107570.0,107560.0,0.89169629]
[1751311902500,1.18879329,107570.0,107560.0,0.65392578]
[1751311902702,0.59567329,107570.0,107560.0,0.89169629]
[1751311902904,1.18875329,107570.0,107560.0,0.65392578]
[1751311903201,1.18875329,107570.0,107560.0,0.65492578]
[1751311904104,0.95098278,107570.0,107560.0,0.65492578]
[1751311904302,0.95098278,107570.0,107560.0,0.66432437]
[1751311904604,1.38383629,107570.0,107560.0,0.66432437]
[1751311905504,1.38383629,107570.0,107560.0,0.90209488]
[1751311906107,1.38383629,107570.0,107560.0,0.89269629]
[1751311906302,1.38383629,107570.0,107560.0,0.65492578]
[1751311907805,1.56973409,107570.0,107560.0,0.65492578]
[1751311908407,1.38383629,107570.0,107560.0,0.65492578]
[1751311908610,1.56973409,107570.0,107560.0,0.65492578]
[1751311909007,1.38383629,107570.0,107560.0,0.64039211]
[1751311910308,1.38383629,107570.0,107560.0,0.57550022]
[1751311910510,1.38383629,107570.0,107560.0,0.81327073]
[1751311911610,1.38383629,107570.0,107560.0,0.57550022]
[1751311913109,1.38383629,107570.0,107560.0,0.81327073]
[1751311914510,1.38383629,107570.0,107560.0,0.85034153]
[1751311915311,1.32097629,107570.0,107560.0,0.87797073]
[1751311915510,1.32097629,107570.0,107560.0,0.90977073]
[1751311915709,1.08320578,107570.0,107560.0,0.90977073]
[1751311915907,1.32097629,107570.0,107560.0,0.90977073]
[1751311919308,1.35117629,107570.0,107560.0,0.67200022]
[1751311919508,1.56817409,107570.0,107560.0,0.64020022]
[1751311920012,1.38227629,107570.0,107560.0,0.64020022]
[1751311920213,1.38227629,107570.0,107560.0,0.6494859]
[1751311921014,1.38227629,107570.0,107560.0,0.88725641]
[1751311921209,1.38227629,107570.0,107560.0,0.6494859]
[1751311921516,1.38227629,107570.0,107560.0,0.88725641]
[1751311922603,1.38227629,107570.0,107560.0,0.91503697]
[1751311924118,1.14450578,107570.0,107560.0,0.67726646]
[1751311924418,1.38227629,107570.0,107560.0,0.88725641]
[1751311924717,1.56817409,107570.0,107560.0,0.88725641]
[1751311925308,1.56817409,107570.0,107560.0,0.6494859]
[1751311925510,1.33040358,107570.0,107560.0,0.6494859]
[1751311925712,1.56817409,107570.0,107560.0,0.6494859]
[1751311927117,1.14450578,107570.0,107560.0,0.6494859]
[1751311927416,1.38227629,107570.0,107560.0,0.6494859]
[1751311927615,1.56817409,107570.0,107560.0,0.6494859]
[1751311928012,1.55313131,107570.0,107560.0,0.88725641]
[1751311928414,1.55313131,107570.0,107560.0,0.6494859]
[1751311929017,1.55313131,107570.0,107560.0,0.6162859]
[1751311929417,1.65313131,107570.0,107560.0,0.6162859]
[1751311930919,1.55313131,107570.0,107560.0,0.6162859]
[1751311931313,1.55313131,107570.0,107560.0,0.67189211]
[1751311934220,1.3153608,107570.0,107560.0,0.67189211]
[1751311934419,1.55313131,107570.0,107560.0,0.67189211]
[1751311938521,1.3153608,107570.0,107560.0,0.67189211]
[1751311938724,1.55313131,107570.0,107560.0,0.67189211]
[1751311942429,1.3153608,107570.0,107560.0,0.67189211]
[1751311942632,1.55313131,107570.0,107560.0,0.70389211]
[1751311942928,1.55313131,107570.0,107560.0,0.94166262]
[1751311943732,0.818963,107570.0,107560.0,0.97216262]
[1751311943932,1.24263121,107570.0,107560.0,0.97216262]
[1751311946738,0.195083,107570.0,107560.0,1.56942758]
[1751311947032,0.195083,107570.0,107560.0,1.58760022]
[1751311947534,0.195083,107570.0,107560.0,2.17932022]
[1751311947725,0.195083,107570.0,107560.0,1.58760022]
[1751311947924,0.195083,107570.0,107560.0,1.1120592]
[1751311948124,0.195083,107570.0,107560.0,1.58760022]
[1751311950232,0.195083,107570.0,107560.0,2.17928022]
[1751311951332,0.195083,107570.0,107560.0,2.40210137]
[1751311953431,0.195083,107570.0,107560.0,2.45761258]
[1751311955137,0.195083,107570.0,107560.0,1.86593258]
[1751311957840,0.01521906,107580.0,107570.0,0.1858977]
[1751311958037,0.01521906,107580.0,107570.0,1.28500254]
[1751311958339,0.01521906,107580.0,107570.0,1.31277047]
[1751311958732,0.86129051,107590.0,107580.0,0.1858804]
[1751311958733,0.26997051,107590.0,107580.0,0.1858804]
[1751311958937,0.86125051,107590.0,107580.0,0.9079908]
[1751311959439,0.86125051,107590.0,107580.0,0.98079939]
[1751311959933,0.86125051,107590.0,107580.0,0.9079908]
[1751311960237,1.04703361,107590.0,107580.0,0.6104804]
[1751311960538,0.92307051,107590.0,107580.0,0.84825091]
[1751311961937,0.92307051,107590.0,107580.0,0.8759908]
[1751311962237,0.92307051,107590.0,107580.0,0.84825091]
[1751311962636,0.92307051,107590.0,107580.0,0.6104804]
[1751311962838,0.92307051,107590.0,107580.0,0.84825091]
[1751311963740,0.6853,107590.0,107580.0,0.84825091]
[1751311963940,0.92307051,107590.0,107580.0,0.84825091]
[1751311964740,0.92307051,107590.0,107580.0,0.92393675]
[1751311965133,0.86101051,107590.0,107580.0,0.95167664]
[1751311965333,0.86101051,107590.0,107580.0,0.98277664]
[1751311965534,0.82004611,107600.0,107590.0,0.1858632]
[1751311965731,0.82004611,107600.0,107590.0,1.18863371]
[1751311966038,0.001,107600.0,107590.0,1.22073371]
[1751311966242,0.001,107600.0,107590.0,1.22977481]
[1751311966437,0.001,107600.0,107590.0,1.2575147]
[1751311966742,0.01502466,107610.0,107600.0,0.1858459]
[1751311967045,0.01502466,107610.0,107600.0,1.45848692]
[1751311967936,0.01502466,107610.0,107600.0,1.29958121]
[1751311968335,0.02202466,107610.0,107600.0,1.30058121]
[1751311970241,0.02202466,107610.0,107600.0,1.3283211]
[1751311973444,0.02202466,107610.0,107600.0,1.36531215]
[1751311973946,0.02202466,107610.0,107600.0,1.39308347]
[1751311974444,0.02202466,107610.0,107600.0,1.07644816]
[1751311974445,1.52202466,107610.0,107600.0,1.07644816]
[1751311974747,1.52202466,107610.0,107600.0,1.39308347]
[1751311975648,1.52202466,107610.0,107600.0,1.61149695]
[1751311975846,1.52202466,107610.0,107600.0,1.63914142]
[1751311976149,1.55362466,107610.0,107600.0,1.04858142]
[1751311977751,0.05362466,107610.0,107600.0,1.04858142]
[1751311978048,0.23945326,107610.0,107600.0,0.95228142]
[1751311978253,2.11828857,107610.0,107600.0,0.95228142]
[1751311978453,1.93245997,107610.0,107600.0,0.95228142]
[1751311980249,2.11828857,107610.0,107600.0,0.95228142]
[1751311980550,1.80165326,107610.0,107600.0,0.95228142]
[1751311982752,2.21828857,107610.0,107600.0,0.95228142]
[1751311982945,2.11828857,107610.0,107600.0,0.95228142]
[1751311983145,2.11828857,107610.0,107600.0,0.91529037]
[1751311983648,2.21828857,107610.0,107600.0,0.91529037]
[1751311986057,2.11828857,107610.0,107600.0,0.91529037]
[1751311987650,1.80165326,107610.0,107600.0,0.91529037]
[1751311987852,2.11828857,107610.0,107600.0,0.91529037]
[1751311990651,1.80165326,107610.0,107600.0,0.91529037]
[1751311990851,2.11828857,107610.0,107600.0,0.91529037]
[1751311991953,1.61582466,107610.0,107600.0,0.91529037]
[1751311992154,1.93245997,107610.0,107600.0,0.98498142]
[1751311992756,2.11828857,107610.0,107600.0,0.98498142]
[1751311993055,1.93245997,107610.0,107600.0,0.98498142]
[1751311993450,2.14362466,107610.0,107600.0,0.98498142]
[1751311993650,2.14362466,107610.0,107600.0,1.01963695]
[1751311994555,2.32945326,107610.0,107600.0,1.01963695]
[1751311994756,2.14362466,107610.0,107600.0,1.01963695]
[1751311995450,2.32945326,107610.0,107600.0,1.01963695]
[1751311995845,2.14362466,107610.0,107600.0,1.01963695]
[1751311996257,2.14362466,107610.0,107600.0,1.07514816]
[1751311997551,2.14362466,107610.0,107600.0,1.03815711]
[1751311997860,2.32945326,107610.0,107600.0,1.03815711]
[1751311998156,2.14362466,107610.0,107600.0,1.03815711]
[1751311999162,1.55362466,107610.0,107600.0,1.03815711]
[1751311999454,2.14346466,107610.0,107600.0,1.03815711]
[1751312000160,2.14346466,107610.0,107600.0,1.39174724]
[1751312001964,2.14346466,107610.0,107600.0,1.07511193]
[1751312002656,2.32929326,107610.0,107600.0,1.07511193]
[1751312003063,2.64592857,107610.0,107600.0,1.07511193]
[1751312003764,2.38100155,107610.0,107600.0,1.31264882]
[1751312004263,2.56683015,107610.0,107600.0,1.31264882]
[1751312005168,2.56683015,107610.0,107600.0,1.07511193]
[1751312005370,2.56683015,107610.0,107600.0,1.31264882]
[1751312005671,2.32929326,107610.0,107600.0,1.31264882]
[1751312005875,2.38100155,107610.0,107600.0,1.31264882]
[1751312007073,2.56683015,107610.0,107600.0,1.07511193]
[1751312007669,2.66683015,107610.0,107600.0,1.04401193]
[1751312007869,2.62853015,107610.0,107600.0,1.28154882]
[1751312008274,2.62853015,107610.0,107600.0,1.244594]
[1751312009776,2.62853015,107610.0,107600.0,1.00705711]
[1751312010072,2.62853015,107610.0,107600.0,0.94315711]
[1751312010268,2.72853015,107610.0,107600.0,0.92461942]
[1751312011375,2.62853015,107610.0,107600.0,0.92461942]
[1751312011870,2.39099326,107610.0,107600.0,1.16215631]
[1751312012067,2.62853015,107610.0,107600.0,1.19355631]
[1751312012368,2.62853015,107610.0,107600.0,1.28206752]
[1751312012776,2.62853015,107610.0,107600.0,1.04453063]
[1751312012977,2.62853015,107610.0,107600.0,1.28206752]
[1751312014580,2.44270155,107610.0,107600.0,1.28206752]
[1751312015176,2.20516466,107610.0,107600.0,1.28206752]
[1751312015574,2.44270155,107610.0,107600.0,1.28206752]
[1751312016777,2.62853015,107610.0,107600.0,1.28206752]
[1751312017184,2.44270155,107610.0,107600.0,1.28206752]
[1751312017482,2.62853015,107610.0,107600.0,1.28206752]
[1751312017682,2.62853015,107610.0,107600.0,1.22655631]
[1751312017987,2.62853015,107610.0,107600.0,1.28206752]
[1751312019879,2.62853015,107610.0,107600.0,1.04453063]
[1751312020082,2.62853015,107610.0,107600.0,1.28206752]
[1751312020284,2.62853015,107610.0,107600.0,1.245094]
[1751312021884,2.20516466,107610.0,107600.0,1.245094]
[1751312022185,2.41170155,107610.0,107600.0,1.245094]
[1751312022988,2.59753015,107610.0,107600.0,1.245094]
[1751312023487,2.35999326,107610.0,107600.0,1.245094]
[1751312023689,2.41170155,107610.0,107600.0,1.245094]
[1751312023879,2.59753015,107610.0,107600.0,1.245094]
[1751312024387,2.41170155,107610.0,107600.0,1.245094]
[1751312025587,2.41170155,107610.0,107600.0,0.884294]
[1751312025879,2.59753015,107610.0,107600.0,1.00755711]
[1751312026085,2.41170155,107610.0,107600.0,1.245094]
[1751312027187,2.17416466,107610.0,107600.0,1.245094]
[1751312027389,2.41170155,107610.0,107600.0,1.245094]
[1751312027688,2.59753015,107610.0,107600.0,1.245094]
[1751312028781,2.59753015,107610.0,107600.0,1.00755711]
[1751312029087,2.59753015,107610.0,107600.0,1.212094]
[1751312029289,2.62903015,107610.0,107600.0,1.2490793]
[1751312030688,2.62903015,107610.0,107600.0,1.01154241]
[1751312031394,2.39149326,107610.0,107600.0,1.2490793]
[1751312031692,2.62903015,107610.0,107600.0,1.2490793]
[1751312031884,2.62903015,107610.0,107600.0,1.01154241]
[1751312032693,2.62903015,107610.0,107600.0,1.2490793]
[1751312033294,2.03919015,107610.0,107600.0,1.2490793]
[1751312033590,2.62803015,107610.0,107600.0,1.2490793]
[1751312033791,2.62803015,107610.0,107600.0,1.2817793]
[1751312034392,2.62803015,107610.0,107600.0,1.04424241]
[1751312034593,2.62803015,107610.0,107600.0,1.2817793]
[1751312038397,1.12803015,107610.0,107600.0,1.2817793]
[1751312047001,1.09653015,107610.0,107600.0,1.2817793]
[1751312047203,1.09653015,107610.0,107600.0,1.3123793]
[1751312047898,0.85899326,107610.0,107600.0,1.3123793]
[1751312048103,0.87948155,107610.0,107600.0,1.3123793]
[1751312048297,0.47699015,107610.0,107600.0,1.275394]
[1751312048503,0.02202466,107610.0,107600.0,1.54989641]
[1751312048798,0.61034466,107610.0,107600.0,1.51293089]
[1751312049004,0.61034466,107610.0,107600.0,1.03785711]
[1751312049197,0.61034466,107610.0,107600.0,1.51293089]
[1751312049600,0.02202466,107610.0,107600.0,1.51293089]
[1751312050100,0.02202466,107610.0,107600.0,0.9823459]
[1751312050401,0.25956155,107610.0,107600.0,1.25683631]
[1751312050800,0.25956155,107610.0,107600.0,1.01929942]
[1751312051003,0.25956155,107610.0,107600.0,1.25683631]
[1751312051306,0.44539015,107610.0,107600.0,1.87279026]
[1751312051805,0.20785326,107610.0,107600.0,1.63525337]
[1751312052705,0.02202466,107610.0,107600.0,1.63525337]
[1751312052908,0.20785326,107610.0,107600.0,1.63525337]
[1751312053205,0.02202466,107610.0,107600.0,1.04701337]
[1751312053506,0.02202466,107610.0,107600.0,1.36371394]
[1751312057006,0.20785326,107610.0,107600.0,1.36371394]
[1751312057199,0.20785326,107610.0,107600.0,1.01005985]
[1751312057400,0.02202466,107610.0,107600.0,1.01005985]
[1751312057606,0.33872523,107610.0,107600.0,1.01005985]
[1751312057808,0.20785326,107610.0,107600.0,1.01005985]
[1751312058007,0.95786523,107610.0,107600.0,1.01005985]
[1751312058208,1.14369383,107610.0,107600.0,1.01005985]
[1751312058808,1.14369383,107610.0,107600.0,0.91535985]
[1751312059010,1.20809383,107610.0,107600.0,0.91535985]
[1751312060811,1.20809383,107610.0,107600.0,0.94555985]
[1751312061110,1.20809383,107610.0,107600.0,0.97825985]
[1751312061302,0.89139326,107610.0,107600.0,0.97825985]
[1751312062209,1.20809383,107610.0,107600.0,0.97825985]
[1751312063113,1.20809383,107610.0,107600.0,0.98749942]
[1751312063404,1.20809383,107610.0,107600.0,1.00446375]
[1751312063609,1.66889383,107610.0,107600.0,0.24076375]
[1751312064915,1.66889383,107610.0,107600.0,0.26848071]
[1751312065608,1.66889383,107610.0,107600.0,0.20381023]
[1751312067312,1.66889383,107610.0,107600.0,0.2315251]
[1751312067701,1.35219326,107610.0,107600.0,0.2315251]
[1751312067900,1.66889383,107610.0,107600.0,0.2315251]
[1751312074214,1.66889383,107610.0,107600.0,0.26847826]
[1751312074715,1.66889383,107610.0,107600.0,0.2315251]
[1751312079620,1.66889383,107610.0,107600.0,0.26847826]
[1751312081921,1.5897698,107610.0,107600.0,0.26847826]
[1751312082609,0.1858459,107600.0,107590.0,0.45316731]
[1751312082815,1.57071116,107600.0,107590.0,0.05542974]
[1751312083116,0.1858631,107590.0,107580.0,0.48789188]
[1751312083422,1.68919618,107590.0,107580.0,0.33423644]
[1751312083615,1.68919618,107590.0,107580.0,0.24129784]
[1751312083814,1.53097281,107590.0,107580.0,0.24129784]
[1751312084623,1.53497281,107590.0,107580.0,0.24229784]
[1751312086528,1.37297281,107590.0,107580.0,0.24229784]
[1751312086722,1.0559631,107590.0,107580.0,0.70119784]
[1751312086921,1.37289281,107590.0,107580.0,0.70119784]
[1751312087224,1.0559631,107590.0,107580.0,0.70119784]
[1751312087427,1.37289281,107590.0,107580.0,0.70119784]
[1751312088119,0.53969281,107590.0,107580.0,0.70119784]
[1751312088321,0.8372,107590.0,107580.0,0.70119784]
[1751312088519,0.004,107590.0,107580.0,1.33812755]
[1751312088917,0.59124,107590.0,107580.0,1.35660413]
[1751312089322,0.59124,107590.0,107580.0,1.03967442]
[1751312089528,0.59124,107590.0,107580.0,1.33808794]
[1751312090721,0.004,107590.0,107580.0,1.33808794]
[1751312092428,0.004,107590.0,107580.0,1.41284457]
[1751312094128,0.004,107590.0,107580.0,1.09591486]
[1751312094325,1.504,107590.0,107580.0,1.41284457]
[1751312094628,1.504,107590.0,107580.0,1.09591486]
[1751312094827,1.504,107590.0,107580.0,1.41284457]
[1751312098431,1.504,107590.0,107580.0,1.09591486]
[1751312099633,1.504,107590.0,107580.0,1.41284457]
[1751312105423,1.504,107590.0,107580.0,1.35745444]
[1751312105631,1.504,107590.0,107580.0,1.41286297]
[1751312112637,1.504,107590.0,107580.0,1.09593326]
[1751312112836,1.504,107590.0,107580.0,1.41286297]
[1751312119340,1.504,107590.0,107580.0,1.35745444]
[1751312120535,1.504,107590.0,107580.0,1.43133248]
[1751312122845,1.504,107590.0,107580.0,1.04052473]
[1751312123038,1.5349,107590.0,107580.0,1.41292428]
[1751312123238,1.5349,107590.0,107580.0,1.35745444]
[1751312123545,1.5349,107590.0,107580.0,1.43133248]
[1751312123940,1.5349,107590.0,107580.0,2.01769248]
[1751312127648,1.5349,107590.0,107580.0,1.99928756]
[1751312127848,1.772495,107590.0,107580.0,2.15754785]
[1751312128546,1.5349,107590.0,107580.0,2.15754785]
[1751312128747,0.272495,107590.0,107580.0,2.15754785]
[1751312130648,0.272495,107590.0,107580.0,1.57118785]
[1751312131347,0.272495,107590.0,107580.0,1.33359285]
[1751312132546,0.0349,107590.0,107580.0,1.33359285]
[1751312132748,0.272495,107590.0,107580.0,1.33359285]
[1751312133950,0.272495,107590.0,107580.0,1.09599785]
[1751312134346,0.272495,107590.0,107580.0,1.33359285]
[1751312134547,1.5349,107590.0,107580.0,1.33359285]
[1751312134748,1.772495,107590.0,107580.0,1.33359285]
[1751312135048,1.772495,107590.0,107580.0,1.27811973]
[1751312135247,1.772495,107590.0,107580.0,1.51571473]
[1751312135449,1.5349,107590.0,107580.0,1.51571473]
[1751312135652,1.772495,107590.0,107580.0,1.51571473]
[1751312135948,1.772495,107590.0,107580.0,1.58959277]
[1751312136542,1.772495,107590.0,107580.0,1.11440277]
[1751312136840,1.772495,107590.0,107580.0,1.58959277]
[1751312137445,1.772495,107590.0,107580.0,1.35199777]
[1751312138952,1.772495,107590.0,107580.0,1.27811973]
[1751312139753,1.772495,107590.0,107580.0,1.35199777]
[1751312143158,1.772495,107590.0,107580.0,1.33359473]
[1751312143553,1.772495,107590.0,107580.0,1.09599973]
[1751312143754,1.772495,107590.0,107580.0,1.33359473]
[1751312144853,1.9583582,107590.0,107580.0,1.91931473]
[1751312145157,1.772495,107590.0,107580.0,1.91931473]
[1751312145550,1.805395,107590.0,107580.0,1.91931473]
[1751312145751,1.5678,107590.0,107580.0,1.91931473]
[1751312145957,1.805395,107590.0,107580.0,1.91931473]
[1751312146955,1.805395,107590.0,107580.0,1.33359473]
[1751312147155,1.805395,107590.0,107580.0,1.06279973]
[1751312147357,2.0232582,107590.0,107580.0,0.99789973]
[1751312147745,2.1232582,107590.0,107580.0,0.67789973]
[1751312147952,2.7216532,107590.0,107580.0,0.03798765]
[1751312148156,0.1858804,107580.0,107570.0,0.27837153]
[1751312148457,1.4121704,107580.0,107570.0,0.27837153]
[1751312148654,1.6573704,107580.0,107570.0,0.22289653]
[1751312149545,1.6878704,107580.0,107570.0,0.22289653]
[1751312149751,1.52961956,107580.0,107570.0,0.22289653]
[1751312150259,1.53161956,107580.0,107570.0,0.1868977]
[1751312150953,1.43161956,107580.0,107570.0,0.1868977]
[1751312153458,1.43161956,107580.0,107570.0,0.5476977]
[1751312153659,1.1146804,107580.0,107570.0,0.5476977]
[1751312153960,0.62012,107580.0,107570.0,0.86463686]
[1751312154160,0.62012,107580.0,107570.0,0.95903686]
[1751312155062,0.62012,107580.0,107570.0,0.6420977]
[1751312155763,0.62012,107580.0,107570.0,0.65646293]
[1751312157663,0.8060004,107580.0,107570.0,0.65646293]
[1751312157864,0.8060004,107580.0,107570.0,0.6420977]
[1751312158371,0.62012,107580.0,107570.0,0.6420977]
[1751312160170,0.8060004,107580.0,107570.0,0.6420977]
[1751312161867,0.62012,107580.0,107570.0,0.6420977]
[1751312163175,0.8060004,107580.0,107570.0,0.6420977]
[1751312164970,1.12293956,107580.0,107570.0,0.6420977]
[1751312165673,0.8060004,107580.0,107570.0,0.6420977]
[1751312170083,1.12293956,107580.0,107570.0,0.6420977]
[1751312170285,1.15343956,107580.0,107570.0,0.6420977]
[1751312170883,1.15343956,107580.0,107570.0,0.2812977]
[1751312171481,1.15343956,107580.0,107570.0,0.1868977]
[1751312171686,1.18433956,107580.0,107570.0,0.1868977]
[1751312171888,1.28433956,107580.0,107570.0,0.1868977]
[1751312175285,1.28433956,107580.0,107570.0,0.20133967]
[1751312175484,1.18433956,107580.0,107570.0,0.20133967]
[1751312175785,1.28433956,107580.0,107570.0,0.20133967]
[1751312177890,1.4427939,107580.0,107570.0,0.20133967]
[1751312178191,1.4427939,107580.0,107570.0,0.2383497]
[1751312179192,0.9674004,107580.0,107570.0,0.2938247]
[1751312179491,1.3427939,107580.0,107570.0,0.2938247]
[1751312179789,0.8674004,107580.0,107570.0,0.2938247]
[1751312179991,1.3427939,107580.0,107570.0,0.2938247]
[1751312180190,0.33369675,107580.0,107570.0,0.53152145]
[1751312180490,1.28797715,107580.0,107570.0,0.53152145]
[1751312180680,1.28797715,107580.0,107570.0,0.53914645]
[1751312180884,1.5256739,107580.0,107570.0,0.53914645]
[1751312181992,1.28797715,107580.0,107570.0,0.53914645]
[1751312182990,0.45817715,107580.0,107570.0,0.53914645]
[1751312183282,1.0502004,107580.0,107570.0,0.53915533]
[1751312183485,1.5255939,107580.0,107570.0,0.53915533]
[1751312184290,1.5255939,107580.0,107570.0,0.30145858]
[1751312184591,1.5255939,107580.0,107570.0,0.59463033]
[1751312185284,0.6958739,107580.0,107570.0,0.30145858]
[1751312185484,0.6958739,107580.0,107570.0,0.53915533]
[1751312185789,1.5255139,107580.0,107570.0,0.53915533]
[1751312186791,0.002,107580.0,107570.0,1.30543033]
[1751312186991,0.58672,107580.0,107570.0,1.33643033]
[1751312187192,0.82441675,107580.0,107570.0,1.33643033]
[1751312188392,0.82441675,107580.0,107570.0,0.98643033]
[1751312188592,0.82441675,107580.0,107570.0,1.30643033]
[1751312188794,0.23969675,107580.0,107570.0,1.30643033]
[1751312189000,0.82441675,107580.0,107570.0,1.30643033]
[1751312190693,0.82441675,107580.0,107570.0,0.74873358]
[1751312190992,0.58672,107580.0,107570.0,1.35643033]
[1751312191194,0.82441675,107580.0,107570.0,1.35643033]
[1751312192586,0.82441675,107580.0,107570.0,0.98643033]
[1751312192795,1.01029715,107580.0,107570.0,0.74873358]
[1751312192990,1.01029715,107580.0,107570.0,0.98643033]
[1751312193192,0.82441675,107580.0,107570.0,0.98643033]
[1751312193693,1.01029715,107580.0,107570.0,0.98643033]
[1751312194297,1.3479939,107580.0,107570.0,0.73428273]
[1751312194490,1.4132939,107580.0,107570.0,0.73428273]
[1751312194689,1.4132939,107580.0,107570.0,0.37348273]
[1751312194893,1.4132939,107580.0,107570.0,0.31800773]
[1751312195182,1.4132939,107580.0,107570.0,0.37348273]
[1751312195395,1.3807939,107580.0,107570.0,0.34248273]
[1751312195596,1.4459939,107580.0,107570.0,0.34248273]
[1751312195796,1.28753174,107580.0,107570.0,0.34248273]
[1751312197300,1.28753174,107580.0,107570.0,0.27938273]
[1751312200398,1.28753174,107580.0,107570.0,0.29391393]
[1751312201299,0.9706004,107580.0,107570.0,0.29391393]
[1751312201499,0.8706004,107580.0,107570.0,0.29391393]
[1751312201687,0.8054004,107580.0,107570.0,0.64304527]
[1751312201892,0.8054004,107580.0,107570.0,0.70424527]
[1751312202092,1.12233174,107580.0,107570.0,0.38731393]
[1751312202293,0.8054004,107580.0,107570.0,0.74811393]
[1751312202492,1.12233174,107580.0,107570.0,0.74811393]
[1751312202693,0.8054004,107580.0,107570.0,0.74811393]
[1751312202996,1.12233174,107580.0,107570.0,0.74811393]
[1751312210207,1.12233174,107580.0,107570.0,0.71761393]
[1751312211307,1.12233174,107580.0,107570.0,0.35681393]
[1751312215206,1.12233174,107580.0,107570.0,0.32908832]
[1751312215912,1.12233174,107580.0,107570.0,1.32681966]
[1751312215913,0.586,107580.0,107570.0,1.32681966]
[1751312216116,0.002,107580.0,107570.0,1.33087027]
[1751312216412,0.586,107580.0,107570.0,1.38634527]
[1751312216709,0.586,107580.0,107570.0,1.33087027]
[1751312217511,0.586,107580.0,107570.0,1.38634527]
[1751312218014,0.82363817,107580.0,107570.0,1.3070521]
[1751312219012,0.82363817,107580.0,107570.0,1.2515771]
[1751312219312,0.82363817,107580.0,107570.0,1.3070521]
[1751312219511,0.586,107580.0,107570.0,1.3070521]
[1751312219713,0.82363817,107580.0,107570.0,1.3070521]
[1751312220108,0.82363817,107580.0,107570.0,1.2515771]
[1751312221116,0.002,107580.0,107570.0,1.54469027]
[1751312221310,1.47438842,107600.0,107590.0,0.1858631]
[1751312221506,0.60042659,107610.0,107600.0,0.1858458]
[1751312221816,1.12180659,107610.0,107600.0,1.05472214]
[1751312222114,1.12180659,107610.0,107600.0,0.88178397]
[1751312222315,0.88412842,107610.0,107600.0,0.88178397]
[1751312222505,1.12176659,107610.0,107600.0,0.88178397]
[1751312222705,1.12176659,107610.0,107600.0,0.89105069]
[1751312222902,1.12176659,107610.0,107600.0,0.89205069]
[1751312223103,1.12976659,107610.0,107600.0,0.89205069]
[1751312223503,1.31559519,107610.0,107600.0,0.89205069]
[1751312223912,0.89212842,107610.0,107600.0,0.65441252]
[1751312224515,0.64756842,107610.0,107600.0,0.6451458]
[1751312225203,0.7776686,107610.0,107600.0,0.6451458]
[1751312225409,0.1938286,107610.0,107600.0,0.6451458]
[1751312225610,0.008,107610.0,107600.0,1.3018417]
[1751312225906,0.008,107610.0,107600.0,1.33888852]
[1751312226107,1.508,107610.0,107600.0,1.39035269]
[1751312226310,1.508,107610.0,107600.0,0.68219262]
[1751312227115,1.508,107610.0,107600.0,1.30888852]
[1751312235336,1.508,107610.0,107600.0,1.60548852]
[1751312237141,1.508,107610.0,107600.0,1.28879262]
[1751312237438,1.508,107610.0,107600.0,1.60548852]
[1751312238435,1.508,107610.0,107600.0,1.28879262]
[1751312238637,1.508,107610.0,107600.0,1.60548852]
[1751312238941,2.6938045,107610.0,107600.0,0.98197021]
[1751312239239,2.6891045,107610.0,107600.0,1.22197021]
[1751312240239,2.3724086,107610.0,107600.0,1.22197021]
[1751312240440,2.6891045,107610.0,107600.0,1.23626895]